[Event "Allsvenskan 24-25"]
[Site "Linköping, Sweden"]
[Date "????.??.??"]
[Round "10.2"]
[White "Hanoman, Tony"]
[Black "Nagy, Mate 2009"]
[Result "1-0"]
[TimeControl "90 min/40 moves + 30 min + 30 sec from move 1"]
[WhiteElo "1971"]
[BlackElo "1871"]

1. e4 {[%clk 01:30:57]} {[%emt 00:00:03]} e5 {[%clk 01:30:45]} {[%emt
00:00:15]} 2. Nf3 {[%clk 01:31:23]} {[%emt 00:00:04]} Nc6 {[%clk 01:31:12]}
{[%emt 00:00:03]} 3. d4 {[%clk 01:31:41]} {[%emt 00:00:11]} exd4 {[%clk
01:31:33]} {[%emt 00:00:09]} 4. Nxd4 {[%clk 01:32:09]} {[%emt 00:00:03]} Nf6
{[%clk 01:31:53]} {[%emt 00:00:10]} 5. Nxc6 {[%clk 01:32:32]} {[%emt 00:00:07]}
bxc6 {[%clk 01:32:16]} {[%emt 00:00:07]} 6. e5 {[%clk 01:32:54]} {[%emt
00:00:08]} Nd5 {[%clk 01:30:51]} {[%emt 00:01:54]} 7. c4 {[%clk 01:33:03]}
{[%emt 00:00:21]} Nb6 {[%clk 01:28:59]} {[%emt 00:02:22]} 8. Bd3 {[%clk
01:33:06]} {[%emt 00:00:27]} Qh4 {[%clk 01:26:51]} {[%emt 00:02:37]} 9. Qe2
{[%clk 01:26:13]} {[%emt 00:07:23]} Ba6 {[%clk 01:24:52]} {[%emt 00:02:29]} 10.
Nd2 {[%clk 01:11:34]} {[%emt 00:15:08]} Bb4 {[%clk 01:23:13]} {[%emt 00:02:09]}
11. b3 {[%clk 01:08:26]} {[%emt 00:03:39]} O-O {[%clk 01:17:43]} {[%emt
00:06:00]} 12. O-O {[%clk 01:07:14]} {[%emt 00:01:42]} Bc3 {[%clk 01:15:32]}
{[%emt 00:02:40]} 13. Nf3 {[%clk 01:01:37]} {[%emt 00:06:07]} Qh5 {[%clk
01:14:32]} {[%emt 00:01:30]} 14. Bb2 {[%clk 01:00:34]} {[%emt 00:01:33]} Bxb2
{[%clk 01:14:50]} {[%emt 00:00:12]} 15. Qxb2 {[%clk 01:00:58]} {[%emt
00:00:06]} Nd5 {[%clk 01:13:38]} {[%emt 00:01:42]} 16. Qd2 {[%clk 00:56:08]}
{[%emt 00:05:19]} Ne7 {[%clk 01:13:06]} {[%emt 00:01:03]} 17. Rad1 {[%clk
00:55:03]} {[%emt 00:01:34]} Bb7 {[%clk 01:03:13]} {[%emt 00:10:23]} 18. Qb4
{[%clk 00:52:07]} {[%emt 00:03:27]} Ng6 {[%clk 01:00:32]} {[%emt 00:03:11]} 19.
Bxg6 {[%clk 00:49:29]} {[%emt 00:03:08]} fxg6 {[%clk 01:00:56]} {[%emt
00:00:06]} 20. Qxb7 {[%clk 00:49:09]} {[%emt 00:00:51]} Rae8 {[%clk 01:00:37]}
{[%emt 00:00:48]} 21. Rd3 {[%clk 00:44:02]} {[%emt 00:05:38]} 1-0

[Event "Allsvenskan 24-25"]
[Site "Linköping, Sweden"]
[Date "????.??.??"]
[Round "10.3"]
[White "Jafarzadeh, Mehrdad"]
[Black "Nordstrom, Per-Olov"]
[Result "1-0"]
[TimeControl "90 min/40 moves + 30 min + 30 sec from move 1"]
[WhiteClock "00:33:31"]
[BlackClock "00:28:40"]
[WhiteElo "2048"]
[BlackElo "1936"]

1. d4 {[%clk 01:30:49]} {[%emt 00:00:09]} Nf6 {[%clk 01:30:49]} {[%emt
00:00:11]} 2. Nf3 {[%clk 01:31:09]} {[%emt 00:00:10]} g6 {[%clk 01:30:58]}
{[%emt 00:00:22]} 3. Bg5 {[%clk 01:31:27]} {[%emt 00:00:12]} Bg7 {[%clk
01:31:10]} {[%emt 00:00:18]} 4. Nbd2 {[%clk 01:31:48]} {[%emt 00:00:08]} d5
{[%clk 01:29:14]} {[%emt 00:02:27]} 5. e3 {[%clk 01:26:17]} {[%emt 00:06:01]}
O-O {[%clk 01:28:47]} {[%emt 00:00:57]} 6. Be2 {[%clk 01:26:28]} {[%emt
00:00:18]} b6 {[%clk 01:24:32]} {[%emt 00:04:45]} 7. O-O {[%clk 01:25:33]}
{[%emt 00:01:25]} Bb7 {[%clk 01:24:23]} {[%emt 00:00:38]} 8. c3 {[%clk
01:20:35]} {[%emt 00:05:28]} c5 {[%clk 01:22:47]} {[%emt 00:02:05]} 9. b4
{[%clk 01:13:55]} {[%emt 00:07:12]} cxb4 {[%clk 01:19:55]} {[%emt 00:03:22]} 10.
cxb4 {[%clk 01:14:03]} {[%emt 00:00:22]} Nbd7 {[%clk 01:17:36]} {[%emt
00:02:48]} 11. Rc1 {[%clk 01:12:46]} {[%emt 00:01:49]} a5 {[%clk 01:08:42]}
{[%emt 00:09:24]} 12. b5 {[%clk 01:12:04]} {[%emt 00:01:13]} Rc8 {[%clk
01:06:51]} {[%emt 00:02:20]} 13. Qb3 {[%clk 01:09:53]} {[%emt 00:02:41]} h6
{[%clk 01:04:16]} {[%emt 00:03:05]} 14. Bh4 {[%clk 01:09:35]} {[%emt 00:00:48]}
g5 {[%clk 00:59:14]} {[%emt 00:05:31]} 15. Bg3 {[%clk 01:09:39]} {[%emt
00:00:27]} Nh5 {[%clk 00:56:14]} {[%emt 00:03:31]} 16. Be5 {[%clk 01:03:40]}
{[%emt 00:06:29]} Bxe5 {[%clk 00:51:01]} {[%emt 00:05:43]} 17. Nxe5 {[%clk
01:03:23]} {[%emt 00:00:47]} Nxe5 {[%clk 00:48:03]} {[%emt 00:03:26]} 18. Bxh5
{[%clk 00:50:56]} {[%emt 00:12:58]} Nd7 {[%clk 00:47:17]} {[%emt 00:01:14]} 19.
f4 {[%emt 00:14:42]} Nf6 {[%clk 00:44:58]} {[%emt 00:00:02]} 20. Be2 {[%clk
00:34:08]} {[%emt 00:05:54]} g4 {[%clk 00:44:05]} {[%emt 00:01:22]} 21. Bd3
{[%clk 00:30:43]} {[%emt 00:03:57]} Qd7 {[%clk 00:42:55]} {[%emt 00:01:40]} 22.
a4 {[%clk 00:29:17]} {[%emt 00:01:56]} Rxc1 {[%clk 00:41:34]} {[%emt 00:01:51]}
23. Rxc1 {[%clk 00:29:15]} {[%emt 00:00:27]} Rc8 {[%clk 00:41:22]} {[%emt
00:00:45]} 24. Rc3 {[%clk 00:26:45]} {[%emt 00:03:00]} Rxc3 {[%clk 00:39:14]}
{[%emt 00:02:39]} 25. Qxc3 {[%clk 00:26:22]} {[%emt 00:00:52]} Qc8 {[%clk
00:38:07]} {[%emt 00:01:37]} 26. Qxc8+ {[%clk 00:22:47]} {[%emt 00:04:04]} Bxc8
{[%clk 00:38:28]} {[%emt 00:00:10]} 27. Kf2 {[%clk 00:22:20]} {[%emt 00:00:58]}
Kg7 {[%clk 00:32:50]} {[%emt 00:06:08]} 28. Kg3 {[%clk 00:20:53]} {[%emt
00:01:57]} h5 {[%clk 00:25:16]} {[%emt 00:08:04]} 29. f5 {[%clk 00:17:58]}
{[%emt 00:03:25]} Kh6 {[%clk 00:22:19]} {[%emt 00:03:27]} 30. Kf4 {[%clk
00:15:31]} {[%emt 00:02:55]} Bb7 {[%clk 00:19:33]} {[%emt 00:03:16]} 31. h4
{[%clk 00:11:31]} {[%emt 00:04:32]} Nd7 {[%clk 00:11:10]} {[%emt 00:08:52]} 32.
Bc2 {[%clk 00:10:35]} {[%emt 00:01:26]} Nf6 {[%clk 00:10:48]} {[%emt 00:00:52]}
33. Nf1 {[%clk 00:08:44]} {[%emt 00:02:20]} Nd7 {[%clk 00:07:37]} {[%emt
00:03:42]} 34. e4 {[%clk 00:07:06]} {[%emt 00:02:09]} dxe4 {[%clk 00:07:38]}
{[%emt 00:00:28]} 35. Bxe4 {[%clk 00:06:55]} {[%emt 00:00:40]} Bc8 {[%clk
00:06:16]} {[%emt 00:01:52]} 36. Ne3 {[%clk 00:04:55]} {[%emt 00:02:30]} Nf6
{[%clk 00:05:50]} {[%emt 00:00:57]} 37. Bc6 {[%clk 00:05:01]} {[%emt 00:00:23]}
e6 {[%clk 00:02:50]} {[%emt 00:03:31]} 38. fxe6 {[%clk 00:03:41]} {[%emt
00:01:50]} fxe6 {[%clk 00:02:38]} {[%emt 00:00:42]} 39. Nc4 {[%clk 00:02:44]}
{[%emt 00:01:26]} Nd5+ {[%clk 00:00:38]} {[%emt 00:02:29]} 40. Bxd5 {[%clk
00:02:46]} {[%emt 00:00:28]} exd5 {[%clk 00:00:54]} {[%emt 00:00:15]} 41. Nxb6
{[%clk 00:03:00]} {[%emt 00:00:16]} Bb7 {[%clk 00:29:53]} {[%emt 00:01:31]} 42.
g3 {[%clk 00:33:09]} {[%emt 00:00:21]} Kg6 {[%clk 00:30:11]} {[%emt 00:00:12]}
43. Ke5 {[%clk 00:33:31]} {[%emt 00:00:08]} 1-0

[Event "Allsvenskan 24-25"]
[Site "Linköping, Sweden"]
[Date "????.??.??"]
[Round "10.4"]
[White "Thyberg, Andre"]
[Black "Narva, David"]
[Result "1/2-1/2"]
[TimeControl "90 min/40 moves + 30 min + 30 sec from move 1"]
[WhiteClock "00:29:32"]
[BlackClock "00:20:04"]
[ReferenceTime "B/2025-03-16T15:30:03.167+01:00"]
[WhiteElo "1973"]
[BlackElo "2023"]

1. e4 {[%clk 01:30:44]} {[%emt 00:00:14]} g6 {[%clk 01:30:37]} {[%emt
00:00:24]} 2. d4 {[%clk 01:31:06]} {[%emt 00:00:08]} Bg7 {[%clk 01:31:02]}
{[%emt 00:00:04]} 3. Nc3 {[%clk 01:31:25]} {[%emt 00:00:12]} d6 {[%clk
01:31:26]} {[%emt 00:00:06]} 4. Bc4 {[%clk 01:31:42]} {[%emt 00:00:12]} e6
{[%clk 01:31:39]} {[%emt 00:00:18]} 5. f4 {[%clk 01:30:35]} {[%emt 00:01:37]}
Ne7 {[%clk 01:31:31]} {[%emt 00:00:37]} 6. Nf3 {[%clk 01:23:08]} {[%emt
00:07:58]} d5 {[%clk 01:29:49]} {[%emt 00:02:13]} 7. Be2 {[%clk 01:21:09]}
{[%emt 00:02:28]} O-O {[%clk 01:26:29]} {[%emt 00:03:50]} 8. O-O {[%clk
01:20:57]} {[%emt 00:00:42]} dxe4 {[%clk 01:21:58]} {[%emt 00:05:01]} 9. Nxe4
{[%clk 01:21:19]} {[%emt 00:00:08]} b6 {[%clk 01:22:11]} {[%emt 00:00:17]} 10.
c3 {[%clk 01:11:09]} {[%emt 00:10:40]} Bb7 {[%clk 01:19:32]} {[%emt 00:03:10]}
11. Qc2 {[%clk 01:08:56]} {[%emt 00:02:42]} Nf5 {[%clk 01:18:58]} {[%emt
00:01:04]} 12. Ne5 {[%clk 01:06:16]} {[%emt 00:03:10]} Nh4 {[%clk 01:17:23]}
{[%emt 00:02:04]} 13. Bc4 {[%clk 01:02:13]} {[%emt 00:04:34]} Bd5 {[%clk
01:13:33]} {[%emt 00:04:20]} 14. Bxd5 {[%clk 00:59:19]} {[%emt 00:03:24]} exd5
{[%clk 01:12:47]} {[%emt 00:01:16]} 15. Ng3 {[%clk 00:56:17]} {[%emt 00:03:32]}
Nd7 {[%clk 01:04:17]} {[%emt 00:08:57]} 16. Bd2 {[%clk 00:51:39]} {[%emt
00:05:11]} Nxe5 {[%clk 01:02:45]} {[%emt 00:02:02]} 17. fxe5 {[%clk 00:51:56]}
{[%emt 00:00:12]} f6 {[%clk 01:02:33]} {[%emt 00:00:42]} 18. exf6 {[%clk
00:39:46]} {[%emt 00:12:40]} Rxf6 {[%clk 01:00:07]} {[%emt 00:02:56]} 19. Rxf6
{[%clk 00:36:27]} {[%emt 00:03:50]} Bxf6 {[%clk 00:58:11]} {[%emt 00:02:26]} 20.
Re1 {[%clk 00:36:05]} {[%emt 00:00:51]} Qd7 {[%clk 00:55:47]} {[%emt 00:02:54]}
21. Qc1 {[%clk 00:33:36]} {[%emt 00:02:58]} Nf5 {[%clk 00:49:32]} {[%emt
00:06:46]} 22. Nxf5 {[%clk 00:29:48]} {[%emt 00:04:19]} Qxf5 {[%clk 00:49:00]}
{[%emt 00:01:01]} 23. Rf1 {[%clk 00:29:49]} {[%emt 00:00:29]} Qe6 {[%clk
00:49:18]} {[%emt 00:00:11]} 24. Bh6 {[%clk 00:29:18]} {[%emt 00:01:01]} Bg7
{[%clk 00:46:48]} {[%emt 00:03:00]} 25. Bxg7 {[%clk 00:28:49]} {[%emt
00:01:01]} Kxg7 {[%clk 00:47:13]} {[%emt 00:00:05]} 26. Re1 {[%clk 00:28:23]}
{[%emt 00:00:55]} Qf6 {[%clk 00:44:28]} {[%emt 00:03:12]} 27. Qe3 {[%clk
00:27:28]} {[%emt 00:01:28]} Rf8 {[%clk 00:44:33]} {[%emt 00:00:25]} 28. Qe5
{[%clk 00:25:39]} {[%emt 00:02:19]} c6 {[%clk 00:43:58]} {[%emt 00:01:03]} 29.
g4 {[%clk 00:23:26]} {[%emt 00:02:44]} g5 {[%clk 00:41:59]} {[%emt 00:02:30]}
30. Kg2 {[%clk 00:22:33]} {[%emt 00:01:23]} h6 {[%clk 00:39:19]} {[%emt
00:03:10]} 31. b3 {[%clk 00:20:36]} {[%emt 00:02:27]} Kg6 {[%clk 00:30:34]}
{[%emt 00:09:14]} 32. Qxf6+ {[%clk 00:20:48]} {[%emt 00:00:20]} Kxf6 {[%clk
00:30:33]} {[%emt 00:00:30]} 33. Re5 {[%clk 00:19:59]} {[%emt 00:01:19]} Rf7
{[%clk 00:29:51]} {[%emt 00:01:10]} 34. Re8 {[%clk 00:15:14]} {[%emt 00:05:18]}
c5 {[%clk 00:15:06]} {[%emt 00:15:15]} 35. dxc5 {[%clk 00:14:55]} {[%emt
00:00:49]} bxc5 {[%clk 00:15:31]} {[%emt 00:00:04]} 36. Rc8 {[%clk 00:14:09]}
{[%emt 00:01:16]} Ke5 {[%clk 00:15:40]} {[%emt 00:00:20]} 37. Rxc5 {[%clk
00:14:19]} {[%emt 00:00:21]} Ke4 {[%clk 00:16:04]} {[%emt 00:00:04]} 38. Rc6
{[%clk 00:14:23]} {[%emt 00:00:27]} Ke3 {[%clk 00:16:03]} {[%emt 00:00:29]} 39.
Re6+ {[%clk 00:14:16]} {[%emt 00:00:38]} Kd3 {[%clk 00:15:44]} {[%emt
00:00:49]} 40. Rd6 {[%clk 00:14:16]} {[%emt 00:00:31]} Ke2 {[%clk 00:15:45]}
{[%emt 00:00:28]} 41. Re6+ {[%clk 00:13:48]} {[%emt 00:00:58]} Kd3 {[%clk
00:16:07]} {[%emt 00:00:07]} 42. Re5 {[%clk 00:11:51]} {[%emt 00:02:28]} Rd7
{[%clk 00:16:14]} {[%emt 00:00:23]} 43. c4 {[%clk 00:08:48]} {[%emt 00:03:34]}
dxc4 {[%clk 00:27:41]} {[%emt 00:19:04]} 44. bxc4 {[%clk 00:39:04]} {[%emt
00:00:13]} Kxc4 {[%clk 00:28:07]} {[%emt 00:00:04]} 45. Ra5 {[%clk 00:39:02]}
{[%emt 00:00:32]} Kd3 {[%clk 00:26:23]} {[%emt 00:02:13]} 46. h4 {[%clk
00:33:15]} {[%emt 00:06:17]} Ke4 {[%clk 00:20:41]} {[%emt 00:06:11]} 47. hxg5
{[%clk 00:32:45]} {[%emt 00:01:02]} hxg5 {[%clk 00:21:00]} {[%emt 00:00:11]} 48.
Ra4+ {[%clk 00:30:47]} {[%emt 00:02:28]} Rd4 {[%clk 00:20:04]} {[%emt
00:01:26]} 49. Rxa7 {[%clk 00:29:32]} {[%emt 00:01:45]} Kd5 {[%emt 00:00:58]}
1/2-1/2

[Event "Allsvenskan 24-25"]
[Site "Linköping, Sweden"]
[Date "????.??.??"]
[Round "10.5"]
[White "Todorovic, Zoran S"]
[Black "Halvarsson, Peter"]
[Result "1-0"]
[TimeControl "90 min/40 moves + 30 min + 30 sec from move 1"]
[WhiteElo "2007"]
[BlackElo "1936"]

1. e4 {[%clk 01:30:55]} {[%emt 00:00:04]} c5 {[%clk 01:30:11]} {[%emt
00:00:49]} 2. Nf3 {[%clk 01:31:15]} {[%emt 00:00:09]} g6 {[%clk 01:30:35]}
{[%emt 00:00:06]} 3. d4 {[%clk 01:29:26]} {[%emt 00:02:20]} cxd4 {[%clk
01:29:35]} {[%emt 00:01:30]} 4. Nxd4 {[%clk 01:28:24]} {[%emt 00:01:31]} Bg7
{[%clk 01:29:42]} {[%emt 00:00:24]} 5. Nc3 {[%clk 01:27:45]} {[%emt 00:01:09]}
Nc6 {[%clk 01:29:44]} {[%emt 00:00:28]} 6. Be3 {[%clk 01:27:24]} {[%emt
00:00:50]} Nf6 {[%clk 01:29:56]} {[%emt 00:00:17]} 7. Nxc6 {[%clk 01:24:00]}
{[%emt 00:03:56]} bxc6 {[%clk 01:30:18]} {[%emt 00:00:08]} 8. e5 {[%clk
01:23:41]} {[%emt 00:00:48]} Ng8 {[%clk 01:29:37]} {[%emt 00:01:11]} 9. f4
{[%clk 01:18:20]} {[%emt 00:05:51]} Nh6 {[%clk 01:27:42]} {[%emt 00:02:26]} 10.
Qd2 {[%clk 01:14:37]} {[%emt 00:04:13]} d5 {[%clk 01:20:59]} {[%emt 00:07:12]}
11. exd6 {[%clk 01:12:50]} {[%emt 00:02:19]} exd6 {[%clk 01:20:35]} {[%emt
00:00:54]} 12. O-O-O {[%clk 01:12:23]} {[%emt 00:00:56]} O-O {[%clk 01:14:39]}
{[%emt 00:06:26]} 13. Bc5 {[%clk 01:07:08]} {[%emt 00:05:45]} d5 {[%clk
00:59:57]} {[%emt 00:15:13]} 14. h3 {[%clk 01:02:50]} {[%emt 00:04:47]} Re8
{[%clk 00:50:04]} {[%emt 00:10:23]} 15. g4 {[%clk 01:02:09]} {[%emt 00:01:11]}
Qa5 {[%clk 00:49:43]} {[%emt 00:00:51]} 16. Bd4 {[%clk 01:01:18]} {[%emt
00:01:21]} Rb8 {[%clk 00:48:13]} {[%emt 00:02:00]} 17. Bxg7 {[%clk 00:58:37]}
{[%emt 00:03:11]} Kxg7 {[%clk 00:47:52]} {[%emt 00:00:52]} 18. Qd4+ {[%clk
00:56:16]} {[%emt 00:02:50]} Kg8 {[%clk 00:46:07]} {[%emt 00:02:15]} 19. b3
{[%clk 00:51:44]} {[%emt 00:05:03]} Rb4 {[%clk 00:38:57]} {[%emt 00:07:39]} 20.
Qd2 {[%clk 00:51:04]} {[%emt 00:01:09]} Qc5 {[%clk 00:31:46]} {[%emt 00:07:43]}
21. Kb2 {[%clk 00:49:35]} {[%emt 00:01:59]} a5 {[%clk 00:24:13]} {[%emt
00:08:03]} 22. a3 {[%clk 00:47:54]} {[%emt 00:02:11]} Rb8 {[%clk 00:22:55]}
{[%emt 00:01:48]} 23. Bg2 {[%clk 00:43:01]} {[%emt 00:05:22]} Bd7 {[%clk
00:19:30]} {[%emt 00:03:56]} 24. Rhe1 {[%clk 00:32:41]} {[%emt 00:10:50]} Rxe1
{[%clk 00:16:31]} {[%emt 00:03:29]} 25. Rxe1 {[%clk 00:33:06]} {[%emt
00:00:05]} Kf8 {[%clk 00:16:14]} {[%emt 00:00:46]} 26. Na4 {[%clk 00:31:05]}
{[%emt 00:02:31]} Qb5 {[%clk 00:13:57]} {[%emt 00:02:47]} 27. f5 {[%clk
00:30:49]} {[%emt 00:00:45]} Ng8 {[%clk 00:13:17]} {[%emt 00:01:10]} 28. Qd4
{[%clk 00:30:59]} {[%emt 00:00:20]} gxf5 {[%clk 00:08:16]} {[%emt 00:05:31]} 29.
Nc5 {[%clk 00:27:44]} {[%emt 00:03:45]} Bc8 {[%clk 00:06:00]} {[%emt 00:02:46]}
30. gxf5 {[%clk 00:24:12]} {[%emt 00:04:01]} Bxf5 {[%clk 00:04:44]} {[%emt
00:01:47]} 31. Bf1 {[%clk 00:20:41]} {[%emt 00:04:01]} Qb6 {[%clk 00:04:46]}
{[%emt 00:00:29]} 32. Bd3 {[%clk 00:20:20]} {[%emt 00:00:50]} Bxh3 {[%clk
00:03:11]} {[%emt 00:02:05]} 33. Bxh7 {[%clk 00:19:55]} {[%emt 00:00:55]} Qd8
{[%clk 00:02:42]} {[%emt 00:01:00]} 34. Bxg8 {[%clk 00:18:22]} {[%emt
00:02:02]} Bf5 {[%clk 00:00:54]} {[%emt 00:02:18]} 35. Qh8 {[%clk 00:18:10]}
{[%emt 00:00:41]} Be6 {[%clk 00:00:39]} {[%emt 00:00:46]} 36. Rxe6 {[%clk
00:18:18]} {[%emt 00:00:21]} 1-0

[Event "Allsvenskan 24-25"]
[Site "Linköping, Sweden"]
[Date "????.??.??"]
[Round "10.6"]
[White "Stahlberg, Adam"]
[Black "Tarasenko, Oleg"]
[Result "1/2-1/2"]
[TimeControl "90 min/40 moves + 30 min + 30 sec from move 1"]
[WhiteElo "1943"]
[BlackElo "1892"]

1. d4 {[%clk 01:30:56]} {[%emt 00:00:04]} d5 {[%clk 01:30:24]} {[%emt
00:00:37]} 2. c4 {[%clk 01:31:19]} {[%emt 00:00:07]} c6 {[%clk 01:29:57]}
{[%emt 00:00:52]} 3. cxd5 {[%clk 01:31:43]} {[%emt 00:00:11]} cxd5 {[%clk
01:29:16]} {[%emt 00:00:43]} 4. Nc3 {[%clk 01:32:07]} Nf6 {[%clk 01:28:37]}
{[%emt 00:01:39]} 5. Nf3 {[%clk 01:31:41]} {[%emt 00:01:00]} Nc6 {[%clk
01:27:44]} {[%emt 00:01:22]} 6. e3 {[%clk 01:20:13]} {[%emt 00:11:58]} Bg4
{[%clk 01:25:18]} {[%emt 00:02:57]} 7. h3 {[%clk 01:18:58]} {[%emt 00:01:45]}
Bxf3 {[%clk 01:17:52]} {[%emt 00:07:56]} 8. Qxf3 {[%clk 01:17:04]} {[%emt
00:02:23]} e6 {[%clk 01:17:13]} {[%emt 00:01:06]} 9. Bd3 {[%clk 01:07:52]}
{[%emt 00:09:46]} Be7 {[%clk 01:15:41]} {[%emt 00:01:57]} 10. Qd1 {[%clk
00:46:09]} {[%emt 00:22:16]} Rc8 {[%clk 01:12:47]} {[%emt 00:03:24]} 11. O-O
{[%clk 00:44:39]} {[%emt 00:02:01]} O-O {[%clk 01:11:58]} {[%emt 00:01:16]} 12.
f4 {[%clk 00:44:13]} {[%emt 00:01:00]} Na5 {[%clk 01:09:51]} {[%emt 00:02:32]}
13. g4 {[%clk 00:36:44]} {[%emt 00:08:04]} Nc4 {[%clk 00:58:51]} {[%emt
00:11:27]} 14. Qf3 {[%clk 00:33:48]} {[%emt 00:03:29]} Qa5 {[%clk 00:56:54]}
{[%emt 00:02:26]} 15. g5 {[%clk 00:21:35]} {[%emt 00:12:43]} Nd7 {[%clk
00:55:58]} {[%emt 00:01:26]} 16. Bxc4 {[%clk 00:21:16]} {[%emt 00:00:50]} Rxc4
{[%clk 00:55:39]} {[%emt 00:00:49]} 17. Bd2 {[%clk 00:21:41]} {[%emt 00:00:05]}
Qa6 {[%clk 00:52:42]} {[%emt 00:03:26]} 18. h4 {[%clk 00:19:47]} {[%emt
00:02:25]} b5 {[%clk 00:52:30]} {[%emt 00:00:42]} 19. b3 {[%clk 00:12:24]}
{[%emt 00:07:53]} Rc6 {[%clk 00:50:20]} {[%emt 00:02:40]} 20. Qe2 {[%clk
00:11:51]} {[%emt 00:01:03]} b4 {[%clk 00:48:47]} {[%emt 00:02:03]} 21. Qxa6
{[%clk 00:11:59]} {[%emt 00:00:22]} Rxa6 {[%clk 00:49:08]} {[%emt 00:00:08]} 22.
Na4 {[%clk 00:12:15]} {[%emt 00:00:14]} Rc6 {[%clk 00:48:50]} {[%emt 00:00:48]}
23. Rfc1 {[%clk 00:12:16]} {[%emt 00:00:29]} Rfc8 {[%clk 00:49:09]} {[%emt
00:00:11]} 24. Rxc6 {[%clk 00:12:35]} {[%emt 00:00:10]} Rxc6 {[%clk 00:49:32]}
{[%emt 00:00:08]} 25. Rc1 {[%clk 00:12:55]} {[%emt 00:00:10]} Rxc1+ {[%clk
00:49:28]} {[%emt 00:00:34]} 26. Bxc1 {[%clk 00:13:14]} {[%emt 00:00:11]} Kf8
{[%clk 00:48:34]} {[%emt 00:01:24]} 27. Bd2 {[%clk 00:13:29]} {[%emt 00:00:15]}
Bd6 {[%clk 00:48:02]} {[%emt 00:01:02]} 28. Nb2 {[%clk 00:12:17]} {[%emt
00:01:41]} Ke7 {[%clk 00:48:11]} {[%emt 00:00:22]} 29. Nd3 {[%clk 00:12:41]}
{[%emt 00:00:06]} a5 {[%clk 00:48:34]} {[%emt 00:00:07]} 30. Kf2 {[%clk
00:12:04]} {[%emt 00:01:06]} 1/2-1/2

[Event "Allsvenskan 24-25"]
[Site "Linköping, Sweden"]
[Date "????.??.??"]
[Round "10.7"]
[White "Nyberg, Peter"]
[Black "Svorono, Gabriel"]
[Result "0-1"]
[TimeControl "90 min/40 moves + 30 min + 30 sec from move 1"]
[WhiteElo "1972"]
[BlackElo "2162"]

1. c4 {[%clk 01:30:57]} {[%emt 00:00:02]} e6 {[%clk 01:30:52]} {[%emt
00:00:08]} 2. e4 {[%clk 01:31:20]} {[%emt 00:00:07]} d5 {[%emt 00:01:32]} 3.
cxd5 {[%clk 01:30:06]} {[%emt 00:01:43]} exd5 {[%clk 01:30:16]} {[%emt
00:00:07]} 4. exd5 {[%clk 01:30:33]} {[%emt 00:00:02]} Nf6 {[%clk 01:30:37]}
{[%emt 00:00:08]} 5. Bb5+ {[%clk 01:30:41]} {[%emt 00:00:23]} Nbd7 {[%clk
01:29:53]} {[%emt 00:01:13]} 6. Nc3 {[%clk 01:29:11]} {[%emt 00:02:00]} Bd6
{[%clk 01:30:03]} {[%emt 00:00:20]} 7. Qe2+ {[%clk 01:29:08]} {[%emt 00:00:34]}
Be7 {[%clk 01:30:16]} {[%emt 00:00:16]} 8. Nf3 {[%clk 01:20:21]} {[%emt
00:09:16]} O-O {[%clk 01:30:29]} {[%emt 00:00:16]} 9. O-O {[%clk 01:20:48]}
{[%emt 00:00:05]} Nb6 {[%clk 01:30:33]} {[%emt 00:00:26]} 10. d4 {[%clk
01:20:17]} {[%emt 00:01:01]} Nbxd5 {[%clk 01:30:29]} {[%emt 00:00:33]} 11. Bd2
{[%clk 01:15:22]} {[%emt 00:05:26]} c6 {[%clk 01:29:52]} {[%emt 00:01:07]} 12.
Bd3 {[%clk 01:13:33]} {[%emt 00:02:19]} Bg4 {[%clk 01:30:01]} {[%emt 00:00:21]}
13. Rae1 {[%clk 00:54:36]} {[%emt 00:19:27]} Re8 {[%clk 01:28:51]} {[%emt
00:01:37]} 14. Qd1 {[%clk 00:51:50]} {[%emt 00:03:20]} Qb6 {[%clk 01:26:35]}
{[%emt 00:02:44]} 15. Nxd5 {[%clk 00:46:42]} {[%emt 00:05:39]} cxd5 {[%clk
01:25:11]} {[%emt 00:01:54]} 16. Bc3 {[%clk 00:41:31]} {[%emt 00:05:40]} Bd6
{[%clk 01:24:14]} {[%emt 00:01:26]} 17. h3 {[%clk 00:28:09]} {[%emt 00:13:52]}
Bh5 {[%clk 01:23:30]} {[%emt 00:01:14]} 18. g4 {[%clk 00:26:42]} {[%emt
00:01:57]} Bg6 {[%clk 01:23:51]} {[%emt 00:00:09]} 19. Bxg6 {[%clk 00:26:33]}
{[%emt 00:00:40]} hxg6 {[%clk 01:24:07]} {[%emt 00:00:14]} 20. Ne5 {[%clk
00:26:19]} {[%emt 00:00:44]} Ne4 {[%clk 01:21:33]} {[%emt 00:03:04]} 21. Qf3
{[%clk 00:23:20]} {[%emt 00:03:28]} Bxe5 {[%clk 01:19:09]} {[%emt 00:02:54]} 22.
dxe5 {[%clk 00:23:32]} {[%emt 00:00:19]} Rac8 {[%clk 01:19:13]} {[%emt
00:00:25]} 23. Qd3 {[%clk 00:12:59]} {[%emt 00:11:04]} Nxc3 {[%clk 01:18:19]}
{[%emt 00:01:24]} 24. bxc3 {[%clk 00:13:21]} {[%emt 00:00:09]} Qa5 {[%clk
01:18:28]} {[%emt 00:00:20]} 25. e6 {[%clk 00:11:27]} {[%emt 00:02:25]} fxe6
{[%clk 01:17:19]} {[%emt 00:01:38]} 26. Qxg6 {[%clk 00:11:39]} {[%emt
00:00:19]} e5 {[%clk 01:17:23]} {[%emt 00:00:25]} 27. Re3 {[%clk 00:11:23]}
{[%emt 00:00:46]} Qxa2 {[%clk 01:14:44]} {[%emt 00:03:09]} 28. Rfe1 {[%clk
00:10:48]} {[%emt 00:01:06]} e4 {[%clk 01:10:36]} {[%emt 00:04:38]} 29. f3
{[%clk 00:09:40]} {[%emt 00:01:38]} Rf8 {[%clk 01:10:17]} {[%emt 00:00:48]} 30.
Qe6+ {[%clk 00:04:09]} {[%emt 00:06:01]} Kh8 {[%clk 01:10:30]} {[%emt
00:00:14]} 31. R3e2 {[%clk 00:04:15]} {[%emt 00:00:27]} Qb3 {[%clk 01:09:56]}
{[%emt 00:01:03]} 32. Qe7 {[%clk 00:02:08]} {[%emt 00:02:37]} Rxf3 {[%clk
01:08:18]} {[%emt 00:02:07]} 33. Qe6 {[%clk 00:00:51]} {[%emt 00:01:47]} Qxc3
{[%clk 01:08:01]} {[%emt 00:00:47]} 34. Qxd5 {[%clk 00:00:38]} {[%emt
00:00:44]} Rg3+ {[%clk 01:08:19]} {[%emt 00:00:10]} 35. Kf1 {[%clk 00:00:59]}
{[%emt 00:00:10]} Rf8+ {[%clk 01:08:38]} {[%emt 00:00:11]} 0-1